[Event "Titled Tuesday Blitz February 07 Late 2023"]
[White "Antonova, Nadezhda"]
[Black "Jesusesmifuerza"]
[WhiteFideId "14700182"]
[WhiteElo "1945"]
[BlackElo "2043"]
[Result "1-0"]
[Round "11"]
[TimeControl "180+2"]
[Date "2023.02.07"]
[WhiteClock "0:00:17"]
[BlackClock "0:00:06"]

1. Nf3 {[%clk 0:02:58]}  d5 {[%clk 0:02:59]} 2. b3 {[%clk 0:02:55]}  Bf5 {[%clk 0:02:57]} 3. Bb2 {[%clk 0:02:55]}  e6 {[%clk 0:02:58]} 4. g3 {[%clk 0:02:54]}  Nf6 {[%clk 0:02:56]} 5. Bg2 {[%clk 0:02:53]}  h6 {[%clk 0:02:55]} 6. O-O {[%clk 0:02:53]}  c6 {[%clk 0:02:53]} 7. d3 {[%clk 0:02:50]}  Nbd7 {[%clk 0:02:52]} 8. Nbd2 {[%clk 0:02:51]}  Bd6 {[%clk 0:02:52]} 9. a3 {[%clk 0:02:47]}  O-O {[%clk 0:02:51]} 10. Qe1 {[%clk 0:02:47]}  Bh7 {[%clk 0:02:38]} 11. e4 {[%clk 0:02:47]}  dxe4 {[%clk 0:02:38]} 12. dxe4 {[%clk 0:02:45]}  e5 {[%clk 0:02:38]} 13. Rd1 {[%clk 0:02:41]}  Qe7 {[%clk 0:02:37]} 14. Nc4 {[%clk 0:02:33]}  Bc7 {[%clk 0:02:36]} 15. Nh4 {[%clk 0:02:29]}  b5 {[%clk 0:02:32]} 16. Nd2 {[%clk 0:02:20]}  Bd6 {[%clk 0:02:32]} 17. Ra1 {[%clk 0:02:11]}  a5 {[%clk 0:02:22]} 18. a4 {[%clk 0:02:10]}  Nc5 {[%clk 0:02:13]} 19. axb5 {[%clk 0:02:00]}  cxb5 {[%clk 0:02:11]} 20. Nf5 {[%clk 0:02:01]}  Bxf5 {[%clk 0:02:07]} 21. exf5 {[%clk 0:02:01]}  Ra7 {[%clk 0:02:03]} 22. Bc6 {[%clk 0:01:40]}  b4 {[%clk 0:01:51]} 23. Nc4 {[%clk 0:01:39]}  Qc7 {[%clk 0:01:48]} 24. Bg2 {[%clk 0:01:36]}  Nfd7 {[%clk 0:01:31]} 25. f6 {[%clk 0:01:17]}  Nxf6 {[%clk 0:01:23]} 26. Bxe5 {[%clk 0:01:16]}  Bxe5 {[%clk 0:01:22]} 27. Qxe5 {[%clk 0:01:15]}  Qxe5 {[%clk 0:01:18]} 28. Nxe5 {[%clk 0:01:16]}  Re8 {[%clk 0:01:17]} 29. Nc6 {[%clk 0:01:14]}  Ra6 {[%clk 0:01:10]} 30. Nxa5 {[%clk 0:01:13]}  Re2 {[%clk 0:01:02]} 31. Rfc1 {[%clk 0:01:10]}  Nfe4 {[%clk 0:00:54]} 32. Bf1 {[%clk 0:01:08]}  Nc3 {[%clk 0:00:50]} 33. Kg2 {[%clk 0:00:54]}  Ree6 {[%clk 0:00:43]} 34. Bxa6 {[%clk 0:00:53]}  Rxa6 {[%clk 0:00:44]} 35. Nc4 {[%clk 0:00:50]}  Re6 {[%clk 0:00:38]} 36. Ne3 {[%clk 0:00:50]}  Rd6 {[%clk 0:00:36]} 37. Ra8+ {[%clk 0:00:45]}  Kh7 {[%clk 0:00:36]} 38. Rb8 {[%clk 0:00:45]}  Na6 {[%clk 0:00:27]} 39. Rb7 {[%clk 0:00:42]}  Rc6 {[%clk 0:00:24]} 40. Rxf7 {[%clk 0:00:39]}  Ne2 {[%clk 0:00:19]} 41. Rd1 {[%clk 0:00:36]}  Nc3 {[%clk 0:00:17]} 42. Rdd7 {[%clk 0:00:36]}  Rg6 {[%clk 0:00:17]} 43. Nf5 {[%clk 0:00:32]}  Nc5 {[%clk 0:00:13]} 44. Rxg7+ {[%clk 0:00:31]}  Rxg7 {[%clk 0:00:14]} 45. Rxg7+ {[%clk 0:00:30]}  Kh8 {[%clk 0:00:14]} 46. Rc7 {[%clk 0:00:25]}  N5e4 {[%clk 0:00:11]} 47. Nxh6 {[%clk 0:00:22]}  Nd2 {[%clk 0:00:07]} 48. Ng4 {[%clk 0:00:19]}  Na2 {[%clk 0:00:06]} 49. Nf6 {[%clk 0:00:17]} 1-0


[Site "https://www.chess.com"]

[Event "Titled Tuesday Blitz February 07 Late 2023"]
[White "Michalski, Olaf"]
[Black "Mohammadian, Mohammad"]
[WhiteFideId "1106740"]
[BlackFideId "12566055"]
[WhiteElo "2273"]
[BlackElo "1398"]
[Result "1-0"]
[Round "11"]
[TimeControl "180+2"]
[Date "2023.02.07"]
[WhiteClock "0:01:21"]
[BlackClock "0:00:23"]

1. d4 {[%clk 0:03:00]}  Nf6 {[%clk 0:02:58]} 2. c4 {[%clk 0:03:01]}  g6 {[%clk 0:02:57]} 3. Nc3 {[%clk 0:03:00]}  d5 {[%clk 0:02:57]} 4. cxd5 {[%clk 0:03:01]}  Nxd5 {[%clk 0:02:56]} 5. e4 {[%clk 0:03:01]}  Nxc3 {[%clk 0:02:55]} 6. bxc3 {[%clk 0:03:02]}  Bg7 {[%clk 0:02:54]} 7. Be3 {[%clk 0:03:02]}  c5 {[%clk 0:02:53]} 8. Qd2 {[%clk 0:03:03]}  Nc6 {[%clk 0:02:51]} 9. d5 {[%clk 0:03:02]}  Ne5 {[%clk 0:02:37]} 10. h3 {[%clk 0:03:01]}  b6 {[%clk 0:02:35]} 11. f4 {[%clk 0:03:00]}  Nd7 {[%clk 0:02:30]} 12. Rd1 {[%clk 0:02:57]}  Bb7 {[%clk 0:02:28]} 13. e5 {[%clk 0:02:54]}  O-O {[%clk 0:02:23]} 14. c4 {[%clk 0:02:53]}  Re8 {[%clk 0:02:10]} 15. Nf3 {[%clk 0:02:51]}  Nf8 {[%clk 0:02:10]} 16. Be2 {[%clk 0:02:48]}  h5 {[%clk 0:02:05]} 17. O-O {[%clk 0:02:46]}  Kh7 {[%clk 0:02:05]} 18. Ng5+ {[%clk 0:02:42]}  Kg8 {[%clk 0:02:03]} 19. Bf3 {[%clk 0:02:28]}  Qc7 {[%clk 0:01:54]} 20. Qe2 {[%clk 0:02:13]}  Rad8 {[%clk 0:01:51]} 21. Ne4 {[%clk 0:02:05]}  f5 {[%clk 0:01:44]} 22. Ng5 {[%clk 0:02:03]}  Ba6 {[%clk 0:01:29]} 23. Rc1 {[%clk 0:01:56]}  Bb7 {[%clk 0:01:28]} 24. e6 {[%clk 0:01:55]}  Rd6 {[%clk 0:01:21]} 25. Nf7 {[%clk 0:01:54]}  Rdd8 {[%clk 0:01:11]} 26. Nxd8 {[%clk 0:01:49]}  Rxd8 {[%clk 0:01:10]} 27. g4 {[%clk 0:01:46]}  hxg4 {[%clk 0:01:07]} 28. hxg4 {[%clk 0:01:46]}  fxg4 {[%clk 0:01:05]} 29. Bxg4 {[%clk 0:01:45]}  Bf6 {[%clk 0:00:59]} 30. Qd3 {[%clk 0:01:42]}  Kg7 {[%clk 0:00:58]} 31. Kf2 {[%clk 0:01:39]}  Bd4 {[%clk 0:00:56]} 32. Kg3 {[%clk 0:01:30]}  Bxe3 {[%clk 0:00:53]} 33. Qxe3 {[%clk 0:01:29]}  Qd6 {[%clk 0:00:44]} 34. Qc3+ {[%clk 0:01:20]}  Kg8 {[%clk 0:00:39]} 35. Rh1 {[%clk 0:01:21]}  Nh7 {[%clk 0:00:33]} 36. Rxh7 {[%clk 0:01:21]}  Kxh7 {[%clk 0:00:32]} 37. Rh1+ {[%clk 0:01:21]}  Kg8 {[%clk 0:00:23]} 38. Rh8# {[%clk 0:01:21]} 1-0


[Site "https://www.chess.com"]